[Event "Late-Titled-Tuesday-Blitz-April-30-2024"]
[Site "Chess.com"]
[Date "2024.04.30"]
[Round "2"]
[White "Blampman"]
[Black "GalaxyRoman"]
[Result "1-0"]
[WhiteElo "2434"]
[BlackElo "2753"]
[TimeControl "180+1"]
[EndTime "14:18:19 PDT"]
[Termination "Blampman won by checkmate"]

1. d4 {[%clk 0:03:00.9]} 1... Nf6 {[%clk 0:02:59.9]} 2. c4 {[%clk 0:03:00.9]}
2... e6 {[%clk 0:03:00.6]} 3. Nc3 {[%clk 0:03:01]} 3... Bb4 {[%clk 0:03:00.7]}
4. a3 {[%clk 0:03:01.3]} 4... Bxc3+ {[%clk 0:03:00.9]} 5. bxc3 {[%clk
0:03:02.2]} 5... Nc6 {[%clk 0:03:01.5]} 6. f3 {[%clk 0:03:02.4]} 6... b6 {[%clk
0:02:56.7]} 7. e4 {[%clk 0:03:02.3]} 7... Ba6 {[%clk 0:02:56.1]} 8. Bd3 {[%clk
0:03:02.4]} 8... Na5 {[%clk 0:02:55.5]} 9. Qe2 {[%clk 0:03:02.8]} 9... d6 {[%clk
0:02:53.2]} 10. Nh3 {[%clk 0:03:01.8]} 10... e5 {[%clk 0:02:50.8]} 11. Be3
{[%clk 0:02:57.1]} 11... c5 {[%clk 0:02:50.3]} 12. d5 {[%clk 0:02:56]} 12... Qd7
{[%clk 0:02:50.2]} 13. a4 {[%clk 0:02:56]} 13... h6 {[%clk 0:02:47.6]} 14. Nf2
{[%clk 0:02:54.5]} 14... g5 {[%clk 0:02:47.2]} 15. h4 {[%clk 0:02:53.5]} 15...
O-O-O {[%clk 0:02:41]} 16. hxg5 {[%clk 0:02:47.6]} 16... hxg5 {[%clk 0:02:41.9]}
17. Rxh8 {[%clk 0:02:47.8]} 17... Rxh8 {[%clk 0:02:42.8]} 18. Bxg5 {[%clk
0:02:48.1]} 18... Nh5 {[%clk 0:02:43.3]} 19. Kd1 {[%clk 0:02:35.6]} 19... Ng3
{[%clk 0:02:26.6]} 20. Qa2 {[%clk 0:02:17]} 20... Rh2 {[%clk 0:02:23.9]} 21. Ng4
{[%clk 0:01:54.3]} 21... Rh1+ {[%clk 0:02:19.7]} 22. Kc2 {[%clk 0:01:53.6]}
22... Rxa1 {[%clk 0:02:19.8]} 23. Qxa1 {[%clk 0:01:54.5]} 23... Nh5 {[%clk
0:01:54.4]} 24. Ne3 {[%clk 0:01:48.2]} 24... f6 {[%clk 0:01:47.8]} 25. Bh4
{[%clk 0:01:46.6]} 25... Nf4 {[%clk 0:01:48.1]} 26. Bxf6 {[%clk 0:01:29.4]}
26... Qh7 {[%clk 0:01:14]} 27. Qe1 {[%clk 0:01:13.5]} 27... Qd7 {[%clk
0:00:57.1]} 28. Qa1 {[%clk 0:01:11.4]} 28... Qh7 {[%clk 0:00:53]} 29. Qe1 {[%clk
0:00:53.4]} 29... Qg6 {[%clk 0:00:35]} 30. Qh4 {[%clk 0:00:44.9]} 30... Nxg2
{[%clk 0:00:32.8]} 31. Qh8+ {[%clk 0:00:44.6]} 31... Kb7 {[%clk 0:00:32.8]} 32.
Nf5 {[%clk 0:00:35.4]} 32... Ne1+ {[%clk 0:00:12.5]} 33. Kd1 {[%clk 0:00:21.2]}
33... Bxc4 {[%clk 0:00:02.4]} 34. Nxd6+ {[%clk 0:00:20.5]} 34... Ka6 {[%clk
0:00:01.8]} 35. Qc8+ {[%clk 0:00:20.6]} 35... Nb7 {[%clk 0:00:02.2]} 36. Qxb7+
{[%clk 0:00:20.3]} 36... Ka5 {[%clk 0:00:03.1]} 37. Qxa7+ {[%clk 0:00:20.5]}
37... Ba6 {[%clk 0:00:03.2]} 38. Qxa6# {[%clk 0:00:20.4]} 1-0

[Event "Late-Titled-Tuesday-Blitz-April-30-2024"]
[Site "Chess.com"]
[Date "2024.04.30"]
[Round "2"]
[White "ALBERT_KLOC"]
[Black "shirovin"]
[Result "1-0"]
[WhiteElo "2454"]
[BlackElo "2059"]
[TimeControl "180+1"]
[EndTime "14:18:22 PDT"]
[Termination "ALBERT_KLOC won by checkmate"]

1. c4 {[%clk 0:03:00.9]} 1... e5 {[%clk 0:02:58]} 2. d3 {[%clk 0:03:00.3]} 2...
Nc6 {[%clk 0:02:56.8]} 3. Nc3 {[%clk 0:02:54.6]} 3... Bc5 {[%clk 0:02:55]} 4. g3
{[%clk 0:02:53.5]} 4... a5 {[%clk 0:02:54.3]} 5. Bg2 {[%clk 0:02:53.3]} 5... d6
{[%clk 0:02:52.3]} 6. e3 {[%clk 0:02:53.3]} 6... h5 {[%clk 0:02:44.7]} 7. Nf3
{[%clk 0:02:52.6]} 7... Nge7 {[%clk 0:02:31.6]} 8. O-O {[%clk 0:02:44.6]} 8...
Ng6 {[%clk 0:02:18.1]} 9. d4 {[%clk 0:02:44.3]} 9... Ba7 {[%clk 0:02:13.2]} 10.
dxe5 {[%clk 0:02:31.9]} 10... Ngxe5 {[%clk 0:02:11.8]} 11. Nxe5 {[%clk
0:02:12.4]} 11... Nxe5 {[%clk 0:02:10.8]} 12. h3 {[%clk 0:02:04.8]} 12... Qf6
{[%clk 0:01:56.4]} 13. Nd5 {[%clk 0:01:54.3]} 13... Qd8 {[%clk 0:01:51.2]} 14.
b3 {[%clk 0:01:50.6]} 14... c6 {[%clk 0:01:47.1]} 15. Nf4 {[%clk 0:01:36.9]}
15... g5 {[%clk 0:01:39.4]} 16. Nxh5 {[%clk 0:01:32.4]} 16... g4 {[%clk
0:01:39]} 17. Nf4 {[%clk 0:01:19.5]} 17... gxh3 {[%clk 0:01:33]} 18. Be4 {[%clk
0:01:13.9]} 18... f5 {[%clk 0:01:13.3]} 19. Bf3 {[%clk 0:01:06]} 19... Bd7
{[%clk 0:01:04.5]} 20. Bh5+ {[%clk 0:01:05]} 20... Nf7 {[%clk 0:00:58.9]} 21.
Bb2 {[%clk 0:00:48.3]} 21... Rg8 {[%clk 0:00:34.7]} 22. Bxf7+ {[%clk 0:00:48.2]}
22... Kxf7 {[%clk 0:00:33.7]} 23. Qh5+ {[%clk 0:00:48.9]} 23... Ke7 {[%clk
0:00:18.8]} 24. Qh7+ {[%clk 0:00:38]} 24... Kf8 {[%clk 0:00:14.6]} 25. Ng6+
{[%clk 0:00:19.9]} 25... Rxg6 {[%clk 0:00:14]} 26. Qxg6 {[%clk 0:00:20.8]} 26...
Qe7 {[%clk 0:00:13.1]} 27. Rad1 {[%clk 0:00:19.5]} 27... d5 {[%clk 0:00:11.7]}
28. cxd5 {[%clk 0:00:16.9]} 28... Be8 {[%clk 0:00:10.4]} 29. Qh6+ {[%clk
0:00:16.5]} 29... Kf7 {[%clk 0:00:09.1]} 30. d6 {[%clk 0:00:15.4]} 30... Qf8
{[%clk 0:00:07.8]} 31. Qh7+ {[%clk 0:00:14.7]} 31... Ke6 {[%clk 0:00:04.3]} 32.
d7 {[%clk 0:00:15.1]} 32... Bf7 {[%clk 0:00:02.8]} 33. Bg7 {[%clk 0:00:13.2]}
33... Qg8 {[%clk 0:00:02]} 34. Qh6+ {[%clk 0:00:13.8]} 34... Ke7 {[%clk
0:00:01.7]} 35. Bf6+ {[%clk 0:00:13.6]} 35... Ke6 {[%clk 0:00:00.5]} 36. Bg7+
{[%clk 0:00:14.2]} 36... Ke7 {[%clk 0:00:00.1]} 37. Qf6# {[%clk 0:00:14.5]} 1-0

[Event "Late-Titled-Tuesday-Blitz-April-30-2024"]
[Site "Chess.com"]
[Date "2024.04.30"]
[Round "2"]
[White "Meri-Arabidze"]
[Black "Andrii_Prydun"]
[Result "1-0"]
[WhiteElo "2684"]
[BlackElo "2372"]
[TimeControl "180+1"]
[EndTime "14:18:23 PDT"]
[Termination "Meri-Arabidze won by resignation"]

1. Nf3 {[%clk 0:02:57.7]} 1... d5 {[%clk 0:02:59.1]} 2. c4 {[%clk 0:02:58.2]}
2... Be6 {[%clk 0:02:55.9]} 3. cxd5 {[%clk 0:02:57.9]} 3... Bxd5 {[%clk
0:02:56.8]} 4. e3 {[%clk 0:02:53.9]} 4... c6 {[%clk 0:02:46.6]} 5. Nc3 {[%clk
0:02:53.7]} 5... Bxf3 {[%clk 0:02:46.6]} 6. Qxf3 {[%clk 0:02:53]} 6... e5 {[%clk
0:02:46.2]} 7. Be2 {[%clk 0:02:44.7]} 7... Nf6 {[%clk 0:02:32.9]} 8. O-O {[%clk
0:02:44.7]} 8... Nbd7 {[%clk 0:02:23.3]} 9. Rd1 {[%clk 0:02:44]} 9... Bc5 {[%clk
0:02:19]} 10. d4 {[%clk 0:02:43.5]} 10... exd4 {[%clk 0:02:19.3]} 11. exd4
{[%clk 0:02:44.4]} 11... Bd6 {[%clk 0:02:19.3]} 12. Bg5 {[%clk 0:02:37.9]} 12...
O-O {[%clk 0:02:16]} 13. Bd3 {[%clk 0:02:37.3]} 13... Re8 {[%clk 0:01:40.1]} 14.
Qh3 {[%clk 0:02:31.1]} 14... h6 {[%clk 0:01:36.5]} 15. Be3 {[%clk 0:02:30.5]}
15... Nb6 {[%clk 0:01:30.7]} 16. Bf5 {[%clk 0:02:13.1]} 16... Nbd5 {[%clk
0:01:26.7]} 17. Nxd5 {[%clk 0:02:12.4]} 17... Nxd5 {[%clk 0:01:25]} 18. Bxh6
{[%clk 0:02:07.2]} 18... gxh6 {[%clk 0:01:20.9]} 19. Qxh6 {[%clk 0:02:05.3]}
19... Qf6 {[%clk 0:01:20.5]} 20. Qh7+ {[%clk 0:01:21.3]} 20... Kf8 {[%clk
0:01:19.8]} 21. Re1 {[%clk 0:01:22.1]} 21... Qxd4 {[%clk 0:01:05.1]} 22. Qh6+
{[%clk 0:01:18.9]} 22... Qg7 {[%clk 0:00:55.1]} 23. Qxd6+ {[%clk 0:01:18.3]}
23... Kg8 {[%clk 0:00:56]} 24. h3 {[%clk 0:01:02.9]} 24... Qxb2 {[%clk
0:00:51.1]} 25. Qd7 {[%clk 0:00:45.5]} 25... Red8 {[%clk 0:00:33.5]} 26. Rab1
{[%clk 0:00:25.8]} 26... Qf6 {[%clk 0:00:33.4]} 27. Qxb7 {[%clk 0:00:21.6]}
27... Qxf5 {[%clk 0:00:33.3]} 28. Qxc6 {[%clk 0:00:22.3]} 28... Nf4 {[%clk
0:00:27.3]} 29. Qf3 {[%clk 0:00:20.3]} 29... Rd5 {[%clk 0:00:16.8]} 30. Rb3
{[%clk 0:00:20.2]} 30... Rad8 {[%clk 0:00:13.3]} 31. Rbe3 {[%clk 0:00:19.4]}
31... Ne6 {[%clk 0:00:11.3]} 32. Qg3+ {[%clk 0:00:18.4]} 32... Qg5 {[%clk
0:00:11.2]} 33. Qh2 {[%clk 0:00:18.1]} 33... Ra5 {[%clk 0:00:10.3]} 34. Rg3
{[%clk 0:00:17.9]} 34... Rxa2 {[%clk 0:00:08]} 35. Rxg5+ {[%clk 0:00:17.8]}
35... Nxg5 {[%clk 0:00:08.8]} 36. Qg3 {[%clk 0:00:17.9]} 36... f6 {[%clk
0:00:08.1]} 37. h4 {[%clk 0:00:18.2]} 1-0

[Event "Late-Titled-Tuesday-Blitz-April-30-2024"]
[Site "Chess.com"]
[Date "2024.04.30"]
[Round "2"]
[White "wadsy27"]
[Black "dropstoneDP"]
[Result "0-1"]
[WhiteElo "2619"]
[BlackElo "3002"]
[TimeControl "180+1"]
[EndTime "14:18:25 PDT"]
[Termination "dropstoneDP won by resignation"]

1. Nf3 {[%clk 0:03:00.9]} 1... Nf6 {[%clk 0:02:59]} 2. g3 {[%clk 0:03:01.3]}
2... c5 {[%clk 0:02:58.8]} 3. Bg2 {[%clk 0:03:01.8]} 3... Nc6 {[%clk 0:02:59.1]}
4. c4 {[%clk 0:02:58]} 4... d5 {[%clk 0:02:58.8]} 5. cxd5 {[%clk 0:02:57.6]}
5... Nxd5 {[%clk 0:02:59.7]} 6. Nc3 {[%clk 0:02:58]} 6... Nxc3 {[%clk
0:02:57.1]} 7. bxc3 {[%clk 0:02:57.5]} 7... e5 {[%clk 0:02:57]} 8. O-O {[%clk
0:02:57.7]} 8... Be7 {[%clk 0:02:57.7]} 9. d3 {[%clk 0:02:56]} 9... O-O {[%clk
0:02:57.9]} 10. Nd2 {[%clk 0:02:56.5]} 10... Be6 {[%clk 0:02:56.6]} 11. Rb1
{[%clk 0:02:50.7]} 11... Qd7 {[%clk 0:02:53.9]} 12. Nc4 {[%clk 0:02:31.2]} 12...
Rab8 {[%clk 0:02:36.3]} 13. f4 {[%clk 0:02:22.8]} 13... b5 {[%clk 0:02:22.8]}
14. Nxe5 {[%clk 0:01:51.8]} 14... Nxe5 {[%clk 0:02:19.9]} 15. fxe5 {[%clk
0:01:52.7]} 15... Bxa2 {[%clk 0:02:20.2]} 16. Ra1 {[%clk 0:01:53]} 16... Be6
{[%clk 0:02:17.9]} 17. Be3 {[%clk 0:01:48.7]} 17... Qc7 {[%clk 0:02:02.5]} 18.
d4 {[%clk 0:01:45.4]} 18... Bc4 {[%clk 0:01:49.6]} 19. d5 {[%clk 0:01:31.4]}
19... Qxe5 {[%clk 0:01:48.4]} 20. Bf4 {[%clk 0:01:31.4]} 20... Qxc3 {[%clk
0:01:46.2]} 21. Bxb8 {[%clk 0:01:27.2]} 21... Rxb8 {[%clk 0:01:47.1]} 22. Rxa7
{[%clk 0:00:55.5]} 22... Qe5 {[%clk 0:01:44.1]} 23. Qa1 {[%clk 0:00:46]} 23...
Qe3+ {[%clk 0:01:10.2]} 24. Kh1 {[%clk 0:00:45.5]} 24... h5 {[%clk 0:01:10.1]}
25. Ra8 {[%clk 0:00:30.1]} 25... Rxa8 {[%clk 0:01:09.9]} 26. Qxa8+ {[%clk
0:00:29.9]} 26... Kh7 {[%clk 0:01:10.5]} 27. Qc8 {[%clk 0:00:20.5]} 27... Qe5
{[%clk 0:00:54.1]} 28. Rxf7 {[%clk 0:00:15.8]} 28... Bf6 {[%clk 0:00:52.1]} 29.
Bf3 {[%clk 0:00:12.4]} 29... Bxe2 {[%clk 0:00:49.1]} 30. Rxf6 {[%clk 0:00:08.7]}
30... gxf6 {[%clk 0:00:44.8]} 31. Bxe2 {[%clk 0:00:08.1]} 31... Qxe2 {[%clk
0:00:43.2]} 32. Qd7+ {[%clk 0:00:06.9]} 32... Kg6 {[%clk 0:00:42.7]} 33. Kg1
{[%clk 0:00:06.4]} 33... b4 {[%clk 0:00:37.3]} 34. d6 {[%clk 0:00:06.5]} 34...
b3 {[%clk 0:00:37.7]} 35. Qd8 {[%clk 0:00:06.6]} 35... Qd1+ {[%clk 0:00:36.7]}
36. Kf2 {[%clk 0:00:05.9]} 36... Qd4+ {[%clk 0:00:37]} 37. Ke2 {[%clk
0:00:05.8]} 37... Qe4+ {[%clk 0:00:36.4]} 38. Kd2 {[%clk 0:00:05.5]} 38... Qc2+
{[%clk 0:00:32.6]} 39. Ke3 {[%clk 0:00:05.7]} 39... Qc3+ {[%clk 0:00:33.2]} 40.
Ke2 {[%clk 0:00:05.3]} 40... Qc4+ {[%clk 0:00:33.1]} 41. Ke3 {[%clk 0:00:04.8]}
41... b2 {[%clk 0:00:32.1]} 42. Qe8+ {[%clk 0:00:02.9]} 42... Kg7 {[%clk
0:00:32.5]} 43. Qe7+ {[%clk 0:00:02.8]} 43... Qf7 {[%clk 0:00:31.6]} 44. Qd8
{[%clk 0:00:02.1]} 44... b1=Q {[%clk 0:00:31.4]} 0-1

[Event "Late-Titled-Tuesday-Blitz-April-30-2024"]
[Site "Chess.com"]
[Date "2024.04.30"]
[Round "2"]
[White "scandalgod"]
[Black "teresin05"]
[Result "1-0"]
[WhiteElo "2506"]
[BlackElo "2265"]
[TimeControl "180+1"]
[EndTime "14:18:27 PDT"]
[Termination "scandalgod won by checkmate"]

1. d4 {[%clk 0:03:00.2]} 1... d5 {[%clk 0:02:59.6]} 2. c4 {[%clk 0:02:59.9]}
2... c6 {[%clk 0:02:59.5]} 3. Nc3 {[%clk 0:02:58.3]} 3... dxc4 {[%clk 0:02:59]}
4. a4 {[%clk 0:02:54.8]} 4... e5 {[%clk 0:02:59]} 5. e3 {[%clk 0:02:41.7]} 5...
exd4 {[%clk 0:02:57.9]} 6. exd4 {[%clk 0:02:41.4]} 6... Be6 {[%clk 0:02:58.2]}
7. Nf3 {[%clk 0:02:40.4]} 7... Na6 {[%clk 0:02:52.3]} 8. Be2 {[%clk 0:02:38.4]}
8... Be7 {[%clk 0:02:45]} 9. O-O {[%clk 0:02:36.5]} 9... c5 {[%clk 0:02:32.5]}
10. d5 {[%clk 0:02:34.9]} 10... Bg4 {[%clk 0:02:31.7]} 11. Bxc4 {[%clk
0:02:34.2]} 11... Nf6 {[%clk 0:02:29.9]} 12. Bb5+ {[%clk 0:02:29.8]} 12... Bd7
{[%clk 0:02:16.4]} 13. d6 {[%clk 0:02:25.4]} 13... Bxb5 {[%clk 0:02:13.8]} 14.
axb5 {[%clk 0:02:19.5]} 14... Bxd6 {[%clk 0:02:13.8]} 15. bxa6 {[%clk 0:02:19]}
15... O-O {[%clk 0:02:13.7]} 16. axb7 {[%clk 0:02:17.6]} 16... Rb8 {[%clk
0:02:14]} 17. Bg5 {[%clk 0:02:08]} 17... h6 {[%clk 0:02:11.4]} 18. Bxf6 {[%clk
0:02:07.5]} 18... Qxf6 {[%clk 0:02:12.3]} 19. Ne4 {[%clk 0:02:07.4]} 19... Bxh2+
{[%clk 0:02:10]} 20. Nxh2 {[%clk 0:02:03.3]} 20... Qxb2 {[%clk 0:02:10.4]} 21.
Rb1 {[%clk 0:02:02.8]} 21... Qe5 {[%clk 0:02:08.4]} 22. Re1 {[%clk 0:02:02]}
22... Rfd8 {[%clk 0:02:04.5]} 23. Qg4 {[%clk 0:01:56.1]} 23... f5 {[%clk
0:02:01.4]} 24. Nf3 {[%clk 0:01:51.5]} 24... Qxe4 {[%clk 0:01:44.9]} 25. Rxe4
{[%clk 0:01:45.8]} 25... fxg4 {[%clk 0:01:44.9]} 26. Rxg4 {[%clk 0:01:45.3]}
26... Rd7 {[%clk 0:01:45.5]} 27. Rc4 {[%clk 0:01:44.7]} 27... Rdxb7 {[%clk
0:01:45.5]} 28. Rxb7 {[%clk 0:01:44.4]} 28... Rxb7 {[%clk 0:01:46.4]} 29. Rxc5
{[%clk 0:01:44.7]} 29... Rb1+ {[%clk 0:01:43.2]} 30. Kh2 {[%clk 0:01:44.8]}
30... Rb2 {[%clk 0:01:43.7]} 31. Kg3 {[%clk 0:01:44.9]} 31... Ra2 {[%clk
0:01:43.6]} 32. Rc7 {[%clk 0:01:44.9]} 32... a5 {[%clk 0:01:41]} 33. Ra7 {[%clk
0:01:45.1]} 33... a4 {[%clk 0:01:40.3]} 34. Nh4 {[%clk 0:01:44.5]} 34... Ra3+
{[%clk 0:01:38.5]} 35. f3 {[%clk 0:01:44.3]} 35... Rd3 {[%clk 0:00:45.9]} 36.
Nf5 {[%clk 0:01:40.6]} 36... a3 {[%clk 0:00:37.3]} 37. Rxg7+ {[%clk 0:01:37.2]}
37... Kh8 {[%clk 0:00:36.3]} 38. Ra7 {[%clk 0:01:37.3]} 38... h5 {[%clk
0:00:32.6]} 39. Nh4 {[%clk 0:01:23]} 39... Rb3 {[%clk 0:00:27.1]} 40. Ng6+
{[%clk 0:01:20.8]} 40... Kg8 {[%clk 0:00:26.1]} 41. Nf4 {[%clk 0:01:20.5]} 41...
h4+ {[%clk 0:00:06.1]} 42. Kxh4 {[%clk 0:01:20.4]} 42... Re3 {[%clk 0:00:04.3]}
43. Kg5 {[%clk 0:01:18.9]} 43... Rb3 {[%clk 0:00:01.9]} 44. Nh5 {[%clk
0:01:13.1]} 44... Rb5+ {[%clk 0:00:02]} 45. Kg4 {[%clk 0:01:13.3]} 45... Rb4+
{[%clk 0:00:02.2]} 46. f4 {[%clk 0:01:13.6]} 46... Rb3 {[%clk 0:00:02.6]} 47.
Kg5 {[%clk 0:01:13.4]} 47... Rb2 {[%clk 0:00:02.8]} 48. g4 {[%clk 0:01:12.9]}
48... a2 {[%clk 0:00:03.2]} 49. f5 {[%clk 0:01:11.8]} 49... Rg2 {[%clk
0:00:02.5]} 50. Nf6+ {[%clk 0:01:10.8]} 50... Kf8 {[%clk 0:00:02.5]} 51. Ne4
{[%clk 0:01:09.3]} 51... Ke8 {[%clk 0:00:01.2]} 52. f6 {[%clk 0:01:09.2]} 52...
Kf8 {[%clk 0:00:00.9]} 53. Nd6 {[%clk 0:01:06.8]} 53... Rd2 {[%clk 0:00:00.4]}
54. Ra8# {[%clk 0:01:06]} 1-0

[Event "Late-Titled-Tuesday-Blitz-April-30-2024"]
[Site "Chess.com"]
[Date "2024.04.30"]
[Round "2"]
[White "CrushingKings"]
[Black "Durarbayli"]
[Result "1-0"]
[WhiteElo "2616"]
[BlackElo "2921"]
[TimeControl "180+1"]
[EndTime "14:18:30 PDT"]
[Termination "CrushingKings won on time"]

1. Nf3 {[%clk 0:02:37.8]} 1... b6 {[%clk 0:02:57.1]} 2. g3 {[%clk 0:02:37]} 2...
Bb7 {[%clk 0:02:58]} 3. Bg2 {[%clk 0:02:37.7]} 3... Nf6 {[%clk 0:02:58.2]} 4.
O-O {[%clk 0:02:38.2]} 4... c5 {[%clk 0:02:58.3]} 5. c4 {[%clk 0:02:38]} 5... e6
{[%clk 0:02:58.5]} 6. Nc3 {[%clk 0:02:34.6]} 6... Be7 {[%clk 0:02:58.6]} 7. d4
{[%clk 0:02:34.5]} 7... cxd4 {[%clk 0:02:59.5]} 8. Qxd4 {[%clk 0:02:34.6]} 8...
d6 {[%clk 0:02:55.6]} 9. Rd1 {[%clk 0:02:34]} 9... a6 {[%clk 0:02:55.1]} 10. Be3
{[%clk 0:02:33.3]} 10... Nbd7 {[%clk 0:02:55]} 11. Na4 {[%clk 0:02:31.7]} 11...
Rb8 {[%clk 0:02:23.4]} 12. b3 {[%clk 0:02:24.6]} 12... b5 {[%clk 0:02:18.7]} 13.
cxb5 {[%clk 0:02:21.2]} 13... axb5 {[%clk 0:02:19.6]} 14. Nb2 {[%clk 0:02:20.4]}
14... O-O {[%clk 0:02:16]} 15. Rac1 {[%clk 0:02:19]} 15... Qa5 {[%clk 0:02:11]}
16. a4 {[%clk 0:02:18.4]} 16... bxa4 {[%clk 0:02:07.5]} 17. Nxa4 {[%clk
0:02:17.7]} 17... Bd5 {[%clk 0:01:35.6]} 18. Nc3 {[%clk 0:02:08.4]} 18... Bxb3
{[%clk 0:01:28.4]} 19. Ra1 {[%clk 0:02:08.5]} 19... Qd8 {[%clk 0:01:19.4]} 20.
Rdb1 {[%clk 0:02:04.7]} 20... d5 {[%clk 0:01:19.5]} 21. Bf4 {[%clk 0:02:00.8]}
21... Rb4 {[%clk 0:01:20.1]} 22. Qd2 {[%clk 0:02:00.6]} 22... Bc4 {[%clk
0:01:20.6]} 23. Rc1 {[%clk 0:01:58.6]} 23... Bc5 {[%clk 0:01:14.2]} 24. h3
{[%clk 0:01:55.4]} 24... Qb6 {[%clk 0:01:09.4]} 25. e3 {[%clk 0:01:55.4]} 25...
Rb2 {[%clk 0:01:08.7]} 26. Qe1 {[%clk 0:01:55.1]} 26... Bb4 {[%clk 0:01:06.3]}
27. Ne5 {[%clk 0:01:53.9]} 27... Nxe5 {[%clk 0:01:02.8]} 28. Bxe5 {[%clk
0:01:54.2]} 28... Nd7 {[%clk 0:01:02.8]} 29. Bd4 {[%clk 0:01:54.2]} 29... Qd8
{[%clk 0:00:57.3]} 30. Qd1 {[%clk 0:01:53.7]} 30... Rb3 {[%clk 0:00:50.3]} 31.
Nb5 {[%clk 0:01:49.7]} 31... e5 {[%clk 0:00:36.6]} 32. Bc3 {[%clk 0:01:44.1]}
32... Bc5 {[%clk 0:00:27.7]} 33. Na7 {[%clk 0:01:30.1]} 33... Qa8 {[%clk
0:00:17.8]} 34. Qg4 {[%clk 0:00:56.1]} 34... Rb7 {[%clk 0:00:13.7]} 35. Nc6
{[%clk 0:00:52.2]} 35... Qe8 {[%clk 0:00:14.2]} 36. Na5 {[%clk 0:00:48.5]} 36...
Ra7 {[%clk 0:00:09.4]} 37. Nxc4 {[%clk 0:00:48]} 37... dxc4 {[%clk 0:00:09.3]}
38. Qxc4 {[%clk 0:00:46.8]} 38... Qe7 {[%clk 0:00:05.3]} 39. Rxa7 {[%clk
0:00:45.4]} 39... Bxa7 {[%clk 0:00:06]} 40. Bb4 {[%clk 0:00:45.1]} 40... Qf6
{[%clk 0:00:04.6]} 41. Bxf8 {[%clk 0:00:45]} 41... Nxf8 {[%clk 0:00:05.5]} 42.
Qc7 {[%clk 0:00:43.6]} 42... Bb6 {[%clk 0:00:04.8]} 43. Qc6 {[%clk 0:00:44.2]}
43... Bd8 {[%clk 0:00:03.3]} 44. Bd5 {[%clk 0:00:42.7]} 44... Qf5 {[%clk
0:00:02.6]} 45. Kg2 {[%clk 0:00:42.3]} 45... h5 {[%clk 0:00:02.1]} 46. h4 {[%clk
0:00:40.6]} 46... g5 {[%clk 0:00:02.1]} 47. Be4 {[%clk 0:00:40.2]} 47... Qg4
{[%clk 0:00:01.2]} 48. Bf3 {[%clk 0:00:40.5]} 48... Qf5 {[%clk 0:00:01.1]} 49.
hxg5 {[%clk 0:00:37.1]} 49... Bxg5 {[%clk 0:00:00.8]} 50. Rc4 {[%clk 0:00:33.9]}
1-0

[Event "Late-Titled-Tuesday-Blitz-April-30-2024"]
[Site "Chess.com"]
[Date "2024.04.30"]
[Round "2"]
[White "imdvb6307"]
[Black "ViktoriyaTarasova"]
[Result "1-0"]
[WhiteElo "2528"]
[BlackElo "2320"]
[TimeControl "180+1"]
[EndTime "14:18:30 PDT"]
[Termination "imdvb6307 won by resignation"]

1. d4 {[%clk 0:03:00.9]} 1... Nf6 {[%clk 0:02:58.3]} 2. Nf3 {[%clk 0:03:00.8]}
2... e6 {[%clk 0:02:57.6]} 3. Bg5 {[%clk 0:03:00.7]} 3... d5 {[%clk 0:02:57.1]}
4. e3 {[%clk 0:03:00.6]} 4... Be7 {[%clk 0:02:56]} 5. Nbd2 {[%clk 0:02:58.4]}
5... h6 {[%clk 0:02:56.5]} 6. Bh4 {[%clk 0:02:57]} 6... c5 {[%clk 0:02:56.9]} 7.
c3 {[%clk 0:02:56.7]} 7... Nc6 {[%clk 0:02:57.3]} 8. Bd3 {[%clk 0:02:54.3]} 8...
O-O {[%clk 0:02:56.4]} 9. O-O {[%clk 0:02:52.6]} 9... b6 {[%clk 0:02:56.9]} 10.
Ne5 {[%clk 0:02:48.1]} 10... Bb7 {[%clk 0:02:56.3]} 11. f4 {[%clk 0:02:31.5]}
11... Nd7 {[%clk 0:02:48.3]} 12. Bxe7 {[%clk 0:02:27.2]} 12... Qxe7 {[%clk
0:02:48.7]} 13. Qh5 {[%clk 0:02:18.3]} 13... Nf6 {[%clk 0:02:47.4]} 14. Qh4
{[%clk 0:02:17.3]} 14... Ne4 {[%clk 0:02:41.8]} 15. Qxe7 {[%clk 0:02:12.8]}
15... Nxe7 {[%clk 0:02:41.6]} 16. Bxe4 {[%clk 0:01:43.6]} 16... dxe4 {[%clk
0:02:41.4]} 17. dxc5 {[%clk 0:01:43.7]} 17... bxc5 {[%clk 0:02:41.2]} 18. c4
{[%clk 0:01:43.3]} 18... Rfd8 {[%clk 0:02:34.4]} 19. Rfd1 {[%clk 0:01:41.7]}
19... f6 {[%clk 0:02:34.2]} 20. Ng4 {[%clk 0:01:39.4]} 20... Nf5 {[%clk
0:02:05.1]} 21. Nb3 {[%clk 0:01:26.6]} 21... Ba6 {[%clk 0:01:57.9]} 22. Nxc5
{[%clk 0:01:24.4]} 22... Bxc4 {[%clk 0:01:57]} 23. Rxd8+ {[%clk 0:00:31]} 23...
Rxd8 {[%clk 0:01:55.9]} 24. Nxe4 {[%clk 0:00:31]} 24... h5 {[%clk 0:01:46.7]}
25. Ngf2 {[%clk 0:00:31]} 25... Nxe3 {[%clk 0:01:46.9]} 26. b3 {[%clk
0:00:31.4]} 26... Bd5 {[%clk 0:01:43.8]} 27. Re1 {[%clk 0:00:31.2]} 27... Nf5
{[%clk 0:01:37.9]} 28. Nc3 {[%clk 0:00:30.1]} 28... Kf7 {[%clk 0:01:33.2]} 29.
Rd1 {[%clk 0:00:28.8]} 29... Ne7 {[%clk 0:01:29]} 30. Nfe4 {[%clk 0:00:27.1]}
30... Kg6 {[%clk 0:01:07.3]} 31. Nc5 {[%clk 0:00:25.9]} 31... Kf5 {[%clk
0:01:03.8]} 32. g3 {[%clk 0:00:25.4]} 32... Rc8 {[%clk 0:01:00.8]} 33. b4 {[%clk
0:00:25.3]} 33... h4 {[%clk 0:00:54.8]} 34. Nb5 {[%clk 0:00:25.1]} 34... Rh8
{[%clk 0:00:48.8]} 35. Nd4+ {[%clk 0:00:18.7]} 35... Kg4 {[%clk 0:00:42.3]} 36.
gxh4 {[%clk 0:00:18.7]} 36... Kxf4 {[%clk 0:00:22.2]} 37. Ndxe6+ {[%clk
0:00:18.4]} 37... Kg4 {[%clk 0:00:22.7]} 38. Rd4+ {[%clk 0:00:16.1]} 38... Kh5
{[%clk 0:00:16.9]} 39. Nf4+ {[%clk 0:00:15.3]} 39... Kh6 {[%clk 0:00:15.5]} 40.
Nxd5 {[%clk 0:00:15.3]} 40... Rd8 {[%clk 0:00:14.9]} 41. Nxe7 {[%clk 0:00:15.5]}
41... Rxd4 {[%clk 0:00:14.9]} 42. Nf5+ {[%clk 0:00:15.7]} 42... Kh5 {[%clk
0:00:14.5]} 43. Nxd4 {[%clk 0:00:16.3]} 43... Kxh4 {[%clk 0:00:15.2]} 44. Nc6
{[%clk 0:00:16.7]} 1-0